fUSD/lending_fUSD_20240317
["ID","MTS","AMOUNT","RATE_DAILY","PERIOD"]
[319285544,1710637885446,-500.0,0.00015342,2]
[319285545,1710637885455,-500.0,0.00015342,2]
[319285546,1710637885465,-500.0,0.00015342,2]
[319285547,1710637885474,-238.24,0.00015342,2]
[319285548,1710637885483,-500.0,0.00015342,2]
[319285549,1710637885493,-451.08283788,0.00015342,2]
[319285550,1710637885502,-151.0,0.00015342,2]
[319285551,1710637885511,-500.0,0.00015342,2]
[319285552,1710637885520,-500.0,0.00015342,2]
[319285553,1710637885530,-1800.54,0.00015342,2]
[319285554,1710637885541,-1800.54,0.00015342,2]
[319285555,1710637885550,-1800.54,0.00015342,2]
[319285556,1710637885559,-500.0,0.00015342,2]
[319285557,1710637885569,-500.0,0.00015342,2]
[319285558,1710637885578,-1800.54,0.00015342,2]
[319285559,1710637885589,-500.0,0.00015342,2]
[319285560,1710637885598,-577.62575778,0.00015342,2]
[319285561,1710637885607,-1800.54,0.00015342,2]
[319285562,1710637885616,-500.0,0.00015342,2]
[319285563,1710637885625,-1800.54,0.00015342,2]
[319285564,1710637885635,-500.0,0.00015342,2]
[319285565,1710637885646,-1800.54,0.00015342,2]
[319285566,1710637885656,-500.0,0.00015342,2]
[319285567,1710637885665,-151.0,0.00015342,2]
[319285568,1710637885674,-1800.54,0.00015342,2]
[319285569,1710637885683,-426.96,0.00015342,2]
[319285570,1710637885692,-151.0,0.00015342,2]
[319285571,1710637885702,-1800.54,0.00015342,2]
[319285572,1710637885711,-1800.54,0.00015342,2]
[319285573,1710637885721,-1572.81,0.00015342,2]
[319285574,1710637885730,-1800.54,0.00015342,2]
[319285575,1710637885740,-1572.81,0.00015342,2]
[319285576,1710637885750,-1800.54,0.00015342,2]
[319285577,1710637885761,-1572.81,0.00015342,2]
[319285578,1710637885770,-1800.54,0.00015342,2]
[319285579,1710637885779,-500.0,0.00015342,2]
[319285580,1710637885794,-1572.81,0.00015342,2]
[319285581,1710637885803,-500.0,0.00015342,2]
[319285582,1710637885812,-1800.54,0.00015342,2]
[319285583,1710637885821,-1572.81,0.00015342,2]
[319285584,1710637885831,-500.0,0.00015342,2]
[319285585,1710637885841,-1800.54,0.00015342,2]
[319285586,1710637885851,-1572.81,0.00015342,2]
[319285587,1710637885860,-500.0,0.00015342,2]
[319285588,1710637885871,-1800.54,0.00015342,2]
[319285589,1710637885882,-1572.81,0.00015342,2]
[319285590,1710637885892,-1572.81,0.00015342,2]
[319285591,1710637885902,-505.55155143,0.00015342,2]
[319285592,1710637885911,-1572.81,0.00015342,2]
[319285593,1710637885920,-1572.81,0.00015342,2]
[319285594,1710637885930,-1403.41,0.00015342,2]
[319285595,1710637885939,-500.0,0.00015342,2]
[319285596,1710637885949,-1572.81,0.00015342,2]
[319285597,1710637885958,-1403.41,0.00015342,2]
[319285598,1710637885967,-500.0,0.00015342,2]
[319285599,1710637885978,-1403.41,0.00015342,2]
[319285600,1710637885989,-500.0,0.00015342,2]
[319285601,1710637886000,-1403.41,0.00015342,2]
[319285602,1710637886011,-500.0,0.00015342,2]
[319285603,1710637886022,-1403.41,0.00015342,2]
[319285604,1710637886037,-500.0,0.00015342,2]
[319285605,1710637886046,-1403.41,0.00015342,2]
[319285606,1710637886057,-380.99,0.00015342,2]
[319285607,1710637886069,-500.0,0.00015342,2]
[319285608,1710637886078,-500.0,0.00015342,2]
[319285609,1710637886088,-1403.41,0.00015342,2]
[319285610,1710637886099,-500.0,0.00015342,2]
[319285611,1710637886110,-1403.41,0.00015342,2]
[319285612,1710637886120,-500.0,0.00015342,2]
[319285613,1710637886131,-500.0,0.00015342,2]
[319285614,1710637886140,-1403.41,0.00015342,2]
[319285615,1710637886150,-348.241765,0.00015342,2]
[319285616,1710637886160,-1403.41,0.00015342,2]
[319285617,1710637886171,-1403.41,0.00015342,2]
[319285618,1710637886180,-1403.41,0.00015342,2]
[319285619,1710637886190,-452.85058681,0.00015342,2]
[319285620,1710637886199,-1403.41,0.00015342,2]
[319285621,1710637886209,-1403.41,0.00015342,2]
[319285622,1710637886218,-1403.41,0.00015342,2]
[319285623,1710637886227,-1403.41,0.00015342,2]
[319285624,1710637886237,-1403.41,0.00015342,2]
[319285625,1710637886246,-1403.41,0.00015342,2]
[319285626,1710637886256,-500.0,0.00015342,2]
[319285627,1710637886265,-500.0,0.00015342,2]
[319285628,1710637886275,-500.0,0.00015342,2]
[319285629,1710637886287,-500.0,0.00015342,2]
[319285630,1710637886297,-153.631203,0.00015342,2]
[319285631,1710637886307,-500.0,0.00015342,2]
[319285632,1710637886317,-1059.45,0.00015342,2]
[319285633,1710637886327,-500.0,0.00015342,2]
[319285634,1710637886336,-1059.45,0.00015342,2]
[319285635,1710637886345,-1059.45,0.00015342,2]
[319285636,1710637886355,-151.0,0.00015342,2]
[319285637,1710637886364,-1059.45,0.00015342,2]
[319285638,1710637886374,-195.82536529,0.00015342,2]
[319285639,1710637886383,-152.41471,0.00015342,2]
[319285640,1710637886392,-1059.45,0.00015342,2]
[319285641,1710637886402,-1059.45,0.00015342,2]
[319285642,1710637886411,-1059.45,0.00015342,2]
[319285643,1710637886422,-548.84,0.00015342,2]
[319285644,1710637886432,-500.0,0.00015342,2]
[319285645,1710637886441,-1059.45,0.00015342,2]
[319285646,1710637886451,-548.84,0.00015342,2]
[319285647,1710637886460,-548.84,0.00015342,2]
[319285648,1710637886469,-500.0,0.00015342,2]
[319285649,1710637886478,-548.84,0.00015342,2]
[319285650,1710637886487,-1059.45,0.00015342,2]
[319285651,1710637886496,-500.0,0.00015342,2]
[319285652,1710637886506,-548.84,0.00015342,2]
[319285653,1710637886515,-1059.45,0.00015342,2]
[319285654,1710637886525,-500.0,0.00015342,2]
[319285655,1710637886537,-548.84,0.00015342,2]
[319285656,1710637886546,-1059.45,0.00015342,2]
[319285657,1710637886555,-500.0,0.00015342,2]
[319285658,1710637886564,-548.84,0.00015342,2]
[319285659,1710637886573,-500.0,0.00015342,2]
[319285660,1710637886582,-548.84,0.00015342,2]
[319285661,1710637886591,-500.0,0.00015342,2]
[319285662,1710637886601,-548.84,0.00015342,2]
[319285663,1710637886609,-500.0,0.00015342,2]
[319285664,1710637886618,-548.84,0.00015342,2]
[319285665,1710637886627,-151.0,0.00015342,2]
[319285666,1710637886637,-500.0,0.00015342,2]
[319285667,1710637886646,-548.84,0.00015342,2]
[319285668,1710637886655,-151.0,0.00015342,2]
[319285669,1710637886664,-500.0,0.00015342,2]
[319285670,1710637886674,-548.84,0.00015342,2]
[319285671,1710637886683,-548.84,0.00015342,2]
[319285672,1710637886692,-548.84,0.00015342,2]
[319285673,1710637886701,-548.84,0.00015342,2]
[319285674,1710637886710,-500.0,0.00015342,2]
[319285675,1710637886720,-548.84,0.00015342,2]
[319285676,1710637886729,-500.0,0.00015342,2]
[319285677,1710637886739,-500.0,0.00015342,2]
[319285678,1710637886747,-901.88,0.00015342,2]
[319285679,1710637886756,-548.84,0.00015342,2]
[319285680,1710637886765,-500.0,0.00015342,2]
[319285681,1710637886774,-901.88,0.00015342,2]
[319285682,1710637886786,-548.84,0.00015342,2]
[319285683,1710637886795,-396.96246719,0.00015342,2]
[319285684,1710637886804,-901.88,0.00015342,2]
[319285685,1710637886812,-751.31370952,0.00015342,2]
[319285686,1710637887327,-1437.55146783,0.000131,2]
[319285687,1710637887336,-38.59503965,0.00015341,2]
[319285688,1710637887353,-231.29302228,0.00015341,2]
[319285689,1710637887363,-155.0,0.00015341,2]
[319285690,1710637887372,-357.96365984,0.00015341,2]
[319285691,1710637887382,-940.0,0.00015342,2]
[319285692,1710637887392,-150.56629048,0.00015342,2]
[319285693,1710637887402,-901.88,0.00015342,2]
[319285694,1710637887412,-246.57623501,0.00015342,2]
[319285695,1710637887426,-253.42376499,0.00015342,2]
[319285696,1710637887435,-901.88,0.00015342,2]
[319285697,1710637887446,-500.0,0.00015342,2]
[319285698,1710637887455,-901.88,0.00015342,2]
[319285699,1710637887464,-500.0,0.00015342,2]
[319285700,1710637887474,-724.73054264,0.00015342,2]
[319285701,1710637887488,-177.14945736,0.00015342,2]
[319285702,1710637887498,-500.0,0.00015342,2]
[319285703,1710637887508,-901.88,0.00015342,2]
[319285704,1710637887517,-901.88,0.00015342,2]
[319285705,1710637887529,-500.0,0.00015342,2]
[319285706,1710637887581,-901.88,0.00015342,2]
[319285707,1710637887592,-500.0,0.00015342,2]
[319285708,1710637887601,-500.0,0.00015342,2]
[319285709,1710637887611,-511.17433922,0.00015342,2]
[319285710,1710637887620,-500.0,0.00015342,2]
[319285711,1710637887629,-500.0,0.00015342,2]
[319285712,1710637887638,-500.0,0.00015342,2]
[319285713,1710637887648,-500.0,0.00015342,2]
[319285714,1710637887657,-500.0,0.00015342,2]
[319285715,1710637887667,-151.0,0.00015342,2]
[319285716,1710637887676,-500.0,0.00015342,2]
[319285717,1710637887685,-500.0,0.00015342,2]
[319285718,1710637887694,-500.0,0.00015342,2]
[319285719,1710637887704,-500.0,0.00015342,2]
[319285720,1710637887713,-142.46607949,0.00015342,2]
[319285721,1710637887726,-82.84190551,0.00015342,2]
[319285722,1710637887735,-500.0,0.00015342,2]
[319285723,1710637887744,-1392.69,0.00015342,2]
[319285724,1710637887754,-500.0,0.00015342,2]
[319285725,1710637887763,-159.88,0.00015342,2]
[319285726,1710637887772,-1392.69,0.00015342,2]
[319285727,1710637887781,-500.0,0.00015342,2]
[319285728,1710637887794,-1392.69,0.00015342,2]
[319285729,1710637887803,-500.0,0.00015342,2]
[319285730,1710637887812,-500.0,0.00015342,2]
[319285731,1710637887826,-1392.69,0.00015342,2]
[319285732,1710637887835,-500.0,0.00015342,2]
[319285733,1710637887844,-500.0,0.00015342,2]
[319285734,1710637887853,-1392.69,0.00015342,2]
[319285735,1710637887862,-1392.69,0.00015342,2]
[319285736,1710637887871,-1392.69,0.00015342,2]
[319285737,1710637887880,-1392.69,0.00015342,2]
[319285738,1710637887889,-1392.69,0.00015342,2]
[319285739,1710637887898,-1392.69,0.00015342,2]
[319285740,1710637887907,-1392.69,0.00015342,2]
[319285741,1710637887915,-500.0,0.00015342,2]
[319285742,1710637887924,-500.0,0.00015342,2]
[319285743,1710637887933,-500.0,0.00015342,2]
[319285744,1710637887945,-500.0,0.00015342,2]
[319285745,1710637887954,-500.0,0.00015342,2]
[319285746,1710637887963,-500.0,0.00015342,2]
[319285747,1710637887972,-500.0,0.00015342,2]
[319285748,1710637887981,-500.0,0.00015342,2]
[319285749,1710637887990,-500.0,0.00015342,2]
[319285750,1710637887999,-500.0,0.00015342,2]
[319285751,1710637888008,-500.0,0.00015342,2]
[319285752,1710637888017,-500.0,0.00015342,2]
[319285753,1710637888027,-500.0,0.00015342,2]
[319285754,1710637888041,-500.0,0.00015342,2]
[319285755,1710637888050,-500.0,0.00015342,2]
[319285756,1710637888059,-500.0,0.00015342,2]
[319285757,1710637888071,-500.0,0.00015342,2]
[319285758,1710637888083,-500.0,0.00015342,2]
[319285759,1710637888092,-500.0,0.00015342,2]
[319285760,1710637888101,-500.0,0.00015342,2]
[319285761,1710637888112,-500.0,0.00015342,2]
[319285762,1710637888121,-500.0,0.00015342,2]
[319285763,1710637888131,-500.0,0.00015342,2]
[319285764,1710637888141,-500.0,0.00015342,2]
[319285765,1710637888151,-500.0,0.00015342,2]
[319285766,1710637888162,-151.0,0.00015342,2]
[319285767,1710637888172,-500.0,0.00015342,2]
[319285768,1710637888182,-500.0,0.00015342,2]
[319285769,1710637888191,-500.0,0.00015342,2]
[319285770,1710637888201,-151.0,0.00015342,2]
[319285771,1710637888211,-500.0,0.00015342,2]
[319285772,1710637888221,-500.0,0.00015342,2]
[319285773,1710637888231,-500.0,0.00015342,2]
[319285774,1710637888241,-500.0,0.00015342,2]
[319285775,1710637888250,-500.0,0.00015342,2]
[319285776,1710637888260,-500.0,0.00015342,2]
[319285777,1710637888270,-500.0,0.00015342,2]
[319285778,1710637888279,-500.0,0.00015342,2]
[319285779,1710637888291,-500.0,0.00015342,2]
[319285780,1710637888300,-500.0,0.00015342,2]
[319285781,1710637888309,-500.0,0.00015342,2]
[319285782,1710637888318,-500.0,0.00015342,2]
[319285783,1710637888327,-500.0,0.00015342,2]
[319285784,1710637888336,-575.48,0.00015342,2]
[319285785,1710637888345,-500.0,0.00015342,2]
[319285786,1710637888355,-500.0,0.00015342,2]
[319285787,1710637888364,-500.0,0.00015342,2]
[319285788,1710637888374,-500.0,0.00015342,2]
[319285789,1710637888383,-500.0,0.00015342,2]
[319285790,1710637888393,-219.80953006,0.00015342,2]
[319285791,1710637888402,-500.0,0.00015342,2]
[319285792,1710637888411,-500.0,0.00015342,2]
[319285793,1710637888421,-905.0,0.00015342,2]
[319285794,1710637888430,-642.84909483,0.00015342,2]
[319285795,1710637888441,-500.0,0.00015342,2]
[319285796,1710637888451,-905.0,0.00015342,2]
[319285797,1710637888460,-500.0,0.00015342,2]
[319285798,1710637888471,-905.0,0.00015342,2]
[319285799,1710637888481,-905.0,0.00015342,2]
[319285800,1710637888491,-905.0,0.00015342,2]
[319285801,1710637888501,-500.0,0.00015342,2]
[319285802,1710637888511,-905.0,0.00015342,2]
[319285803,1710637888521,-500.0,0.00015342,2]
[319285804,1710637888531,-796.19700905,0.00015342,2]
[319285805,1710637888778,-367.60722123,0.00015341,5]
[319285806,1710637888789,-367.60722123,0.00015341,5]
[319285807,1710637888798,-108.80299095,0.00015342,2]
[319285808,1710637888808,-500.0,0.00015342,2]
[319285809,1710637888817,-905.0,0.00015342,2]
[319285810,1710637888826,-500.0,0.00015342,2]
[319285811,1710637888835,-500.0,0.00015342,2]
[319285812,1710637888844,-500.0,0.00015342,2]
[319285813,1710637888854,-905.0,0.00015342,2]
[319285814,1710637888863,-500.0,0.00015342,2]
[319285815,1710637888873,-500.0,0.00015342,2]
[319285816,1710637888883,-500.0,0.00015342,2]
[319285817,1710637888893,-500.0,0.00015342,2]
[319285818,1710637888903,-500.0,0.00015342,2]
[319285819,1710637888912,-500.0,0.00015342,2]
[319285820,1710637888922,-500.0,0.00015342,2]
[319285821,1710637888932,-500.0,0.00015342,2]
[319285822,1710637888941,-500.0,0.00015342,2]
[319285823,1710637888950,-500.0,0.00015342,2]
[319285824,1710637888960,-500.0,0.00015342,2]
[319285825,1710637888969,-502.76293647,0.00015342,2]
[319285826,1710637888979,-905.0,0.00015342,2]
[319285827,1710637888989,-500.0,0.00015342,2]
[319285828,1710637888998,-500.0,0.00015342,2]
[319285829,1710637889008,-905.0,0.00015342,2]
[319285830,1710637889017,-500.0,0.00015342,2]
[319285831,1710637889029,-500.0,0.00015342,2]
[319285832,1710637889039,-500.0,0.00015342,2]
[319285833,1710637889049,-500.0,0.00015342,2]
[319285834,1710637889058,-500.0,0.00015342,2]
[319285835,1710637889067,-500.0,0.00015342,2]
[319285836,1710637889082,-500.0,0.00015342,2]
[319285837,1710637889091,-500.0,0.00015342,2]
[319285838,1710637889101,-152.56363971,0.00015342,2]
[319285839,1710637889184,-367.60722122,0.00015341,5]
[319285840,1710637889193,-347.43636029,0.00015342,2]
[319285841,1710637889203,-500.0,0.00015342,2]
[319285842,1710637889213,-500.0,0.00015342,2]
[319285843,1710637889223,-500.0,0.00015342,2]
[319285844,1710637889232,-500.0,0.00015342,2]
[319285845,1710637889242,-500.0,0.00015342,2]
[319285846,1710637889253,-500.0,0.00015342,2]
[319285847,1710637889262,-500.0,0.00015342,2]
[319285848,1710637889271,-500.0,0.00015342,2]
[319285849,1710637889281,-500.0,0.00015342,2]
[319285850,1710637889294,-500.0,0.00015342,2]
[319285851,1710637889302,-500.0,0.00015342,2]
[319285852,1710637889311,-500.0,0.00015342,2]
[319285853,1710637889320,-500.0,0.00015342,2]
[319285854,1710637889329,-500.0,0.00015342,2]
[319285855,1710637889338,-500.0,0.00015342,2]
[319285856,1710637889347,-500.20176336,0.00015342,2]
[319285857,1710637889356,-500.0,0.00015342,2]
[319285858,1710637889366,-500.0,0.00015342,2]
[319285859,1710637889375,-776.23907462,0.00015342,2]
[319285860,1710637889645,-1586.09092538,0.00015342,2]
[319285861,1710637889655,-2362.33,0.00015342,2]
[319285862,1710637889665,-500.0,0.00015342,2]
[319285863,1710637889675,-500.0,0.00015342,2]
[319285864,1710637889684,-1592.87907462,0.00015342,2]
[319285926,1710639031764,-5112.78142389,0.0001195,2]
[319285929,1710639031846,-103.42093876,0.0001195,2]
[319285930,1710639031857,-155.0,0.00011951,2]
[319285931,1710639031867,-498.85882424,0.00011951,2]
[319285932,1710639031878,-1379.09551258,0.00011951,2]
[319285933,1710639031889,-155.0,0.00011952,2]
[319285934,1710639031899,-1235.12692231,0.00011952,2]
[319285935,1710639031914,-529.04209343,0.00011959,2]
[319285936,1710639031925,-2054.39585781,0.00011963,2]
[319285937,1710639031935,-649.27,0.00011978,2]
[319285938,1710639031946,-250.0,0.0001362,2]
[319285939,1710639031955,-640.0,0.00013639,2]
[319285940,1710639031997,-1893.14,0.00013699,2]
[319285941,1710639032008,-250.0,0.00013699,2]
[319285942,1710639032019,-170.04,0.00013699,2]
[319285943,1710639032029,-177.48,0.00013699,2]
[319285944,1710639032039,-1806.65,0.00013716,2]
[319285945,1710639032050,-155.37,0.00013783,2]
[319285946,1710639032060,-499.99,0.00013904,2]
[319285947,1710639032070,-360.0,0.00013989,2]
[319285948,1710639032080,-40136.92790168,0.0001421,2]
[319285949,1710639032094,-62563.07209832,0.0001421,2]
[319285950,1710639032103,-649.27,0.00014242,2]
[319285951,1710639032113,-150.99,0.00014257,2]
[319285952,1710639032124,-177.85,0.00014263,2]
[319285953,1710639032135,-2336.59132271,0.00014499,2]
[319285954,1710639032147,-260198.08286638,0.00014499,2]
[319285955,1710639032162,-760303.11865044,0.00014499,2]
[319285956,1710639032173,-150.0,0.00014688,2]
[319285957,1710639032183,-952.51492247,0.00014694,2]
[319285958,1710639032193,-2183.113539,0.00014697,2]
[319285959,1710639032203,-952.51492241,0.00014795,2]
[319285960,1710639032214,-2183.113539,0.0001488,2]
[319285961,1710639032224,-952.51492241,0.00014896,2]
[319285962,1710639032234,-2500.0,0.00014899,2]
[319285963,1710639032244,-152.96902584,0.000149,2]
[319285964,1710639032254,-952.51492241,0.00014997,2]
[319285965,1710639032264,-5000.0,0.00015,2]
[319285966,1710639032274,-17732.1435,0.00015,2]
[319285968,1710639032284,-2183.113539,0.00015064,2]
[319285970,1710639032294,-952.51492241,0.00015097,2]
[319285971,1710639032304,-150.0,0.00015125,2]
[319285972,1710639032314,-31306.7718,0.00015156,2]
[319285973,1710639032325,-150.0,0.00015178,2]
[319285974,1710639032335,-150.0,0.00015178,2]
[319285975,1710639032346,-249.56599111,0.00015187,2]
[319285976,1710639032356,-155.02583989,0.00015188,2]
[319285977,1710639032371,-200.0,0.00015192,2]
[319285978,1710639032382,-952.51492241,0.00015198,2]
[319285979,1710639032392,-20035.0282497,0.00015199,2]
[319285980,1710639032401,-246.67623844,0.00015199,2]
[319285981,1710639032418,-1468.33422092,0.000152,2]
[319285982,1710639032429,-5000.0,0.000152,2]
[319285983,1710639032439,-200.0,0.00015205,2]
[319285984,1710639032450,-800.0,0.00015205,2]
[319285985,1710639032461,-200.0,0.00015205,2]
[319285986,1710639032473,-500.0,0.00015205,2]
[319285987,1710639032484,-200.0,0.00015205,2]
[319285988,1710639032494,-200.0,0.00015212,2]
[319285989,1710639032504,-200.0,0.00015218,2]
[319285990,1710639032514,-800.0,0.00015218,2]
[319285991,1710639032525,-200.0,0.00015218,2]
[319285992,1710639032535,-3198.60200942,0.00015233,2]
[319285993,1710639032546,-3198.60200935,0.00015233,2]
[319285994,1710639032557,-3198.60200935,0.00015233,2]
[319285995,1710639032567,-3198.60200935,0.00015233,2]
[319285996,1710639032577,-3198.60200935,0.00015233,2]
[319285997,1710639032588,-3198.60200935,0.00015233,2]
[319285998,1710639032599,-184.95083576,0.00015233,2]
[319285999,1710639032609,-3198.60200935,0.00015233,2]
[319286000,1710639032620,-150.0,0.00015239,2]
[319286001,1710639032631,-16791.5266,0.0001524,2]
[319286002,1710639032642,-623.385,0.00015242,2]
[319286003,1710639032653,-1183.80827643,0.00015242,2]
[319286004,1710639032666,-934.31576028,0.00015242,2]
[319286005,1710639032677,-846.0,0.00015247,2]
[319286006,1710639032687,-2183.113539,0.00015248,2]
[319286007,1710639032698,-3198.60200935,0.00015289,2]
[319286008,1710639032709,-1000.0,0.00015299,2]
[319286009,1710639032720,-1000.0,0.00015299,2]
[319286010,1710639032731,-952.51492241,0.00015299,2]
[319286011,1710639032741,-150.0,0.000153,2]
[319286012,1710639032752,-4187.0,0.000153,2]
[319286013,1710639032762,-1183.80827641,0.00015321,2]
[319286014,1710639032773,-934.31576026,0.00015321,2]
[319286015,1710639032784,-266.0,0.0001533,2]
[319286016,1710639032795,-423.93168887,0.00015332,2]
[319286017,1710639032806,-1852.67765409,0.00015339,2]
[319286018,1710639032816,-193.42559001,0.0001534,2]
[319286019,1710639032826,-156.02370616,0.0001534,2]
[319286020,1710639032836,-938.72545553,0.0001534,2]
[319286021,1710639032847,-253.00374209,0.0001534,2]
[319286022,1710639032858,-11316.62780046,0.0001534,2]
[319286023,1710639032868,-542.04928445,0.0001534,2]
[319286024,1710639032879,-205.2203656,0.00015341,2]
[319286025,1710639032890,-5001.82936997,0.00015341,2]
[319286026,1710639032900,-1029.50869994,0.00015342,2]
[319286027,1710639032912,-264.46871534,0.00015342,2]
[319286028,1710639032922,-412.1358591,0.00015342,2]
[319286029,1710639032933,-500.0,0.00015342,2]
[319286030,1710639032944,-500.0,0.00015342,2]
[319286031,1710639032954,-500.0,0.00015342,2]
[319286032,1710639032965,-155.0,0.00015342,2]
[319286033,1710639032976,-500.0,0.00015342,2]
[319286034,1710639032986,-194.8408993,0.00015342,2]
[319286035,1710639032997,-454.72,0.00015342,2]
[319286036,1710639033008,-500.0,0.00015342,2]
[319286037,1710639033018,-500.0,0.00015342,2]
[319286038,1710639033029,-500.0,0.00015342,2]
[319286039,1710639033039,-500.0,0.00015342,2]
[319286040,1710639033050,-500.0,0.00015342,2]
[319286041,1710639033060,-500.0,0.00015342,2]
[319286042,1710639033071,-500.0,0.00015342,2]
[319286043,1710639033081,-500.0,0.00015342,2]
[319286044,1710639033092,-500.0,0.00015342,2]
[319286045,1710639033102,-425.51815386,0.00015342,2]
[319286046,1710639033112,-500.0,0.00015342,2]
[319286047,1710639033123,-500.0,0.00015342,2]
[319286048,1710639033133,-500.0,0.00015342,2]
[319286049,1710639033143,-461.75523492,0.00015342,2]
[319286050,1710639033154,-500.0,0.00015342,2]
[319286051,1710639033167,-500.0,0.00015342,2]
[319286052,1710639033178,-500.0,0.00015342,2]
[319286053,1710639033189,-500.0,0.00015342,2]
[319286054,1710639033200,-500.0,0.00015342,2]
[319286055,1710639033210,-500.0,0.00015342,2]
[319286056,1710639033220,-500.0,0.00015342,2]
[319286057,1710639033230,-475.07,0.00015342,2]
[319286058,1710639033242,-500.0,0.00015342,2]
[319286059,1710639033253,-500.0,0.00015342,2]
[319286060,1710639033264,-500.0,0.00015342,2]
[319286061,1710639033274,-500.0,0.00015342,2]
[319286062,1710639033285,-500.0,0.00015342,2]
[319286063,1710639033295,-500.0,0.00015342,2]
[319286064,1710639033305,-500.0,0.00015342,2]
[319286065,1710639033315,-500.0,0.00015342,2]
[319286066,1710639033326,-500.0,0.00015342,2]
[319286067,1710639033336,-500.0,0.00015342,2]
[319286068,1710639033346,-500.0,0.00015342,2]
[319286069,1710639033356,-500.0,0.00015342,2]
[319286070,1710639033618,-500.0,0.00015342,2]
[319286071,1710639033629,-500.0,0.00015342,2]
[319286072,1710639033640,-500.0,0.00015342,2]
[319286073,1710639033650,-500.0,0.00015342,2]
[319286074,1710639033663,-500.0,0.00015342,2]
[319286075,1710639033675,-500.0,0.00015342,2]
[319286076,1710639033685,-500.0,0.00015342,2]
[319286077,1710639033696,-500.0,0.00015342,2]
[319286078,1710639033706,-500.0,0.00015342,2]
[319286079,1710639033717,-500.0,0.00015342,2]
[319286080,1710639033727,-500.0,0.00015342,2]
[319286081,1710639033738,-500.0,0.00015342,2]
[319286082,1710639033749,-500.0,0.00015342,2]
[319286083,1710639033759,-190.23,0.00015342,2]
[319286084,1710639033770,-500.0,0.00015342,2]
[319286085,1710639033779,-500.0,0.00015342,2]
[319286086,1710639033789,-500.0,0.00015342,2]
[319286087,1710639033800,-500.0,0.00015342,2]
[319286088,1710639033810,-500.0,0.00015342,2]
[319286089,1710639033820,-500.0,0.00015342,2]
[319286090,1710639033831,-500.0,0.00015342,2]
[319286091,1710639033842,-500.0,0.00015342,2]
[319286092,1710639033852,-500.0,0.00015342,2]
[319286093,1710639033862,-500.0,0.00015342,2]
[319286094,1710639033872,-500.0,0.00015342,2]
[319286095,1710639033881,-500.0,0.00015342,2]
[319286096,1710639033892,-500.0,0.00015342,2]
[319286097,1710639033902,-500.0,0.00015342,2]
[319286098,1710639033914,-500.0,0.00015342,2]
[319286099,1710639033925,-500.0,0.00015342,2]
[319286100,1710639033935,-500.0,0.00015342,2]
[319286101,1710639033946,-500.0,0.00015342,2]
[319286102,1710639033956,-500.0,0.00015342,2]
[319286103,1710639033967,-500.0,0.00015342,2]
[319286104,1710639034021,-500.0,0.00015342,2]
[319286105,1710639034032,-500.0,0.00015342,2]
[319286106,1710639034043,-500.0,0.00015342,2]
[319286107,1710639034053,-595.9,0.00015342,2]
[319286108,1710639034064,-500.0,0.00015342,2]